fUSD/lending_fUSD_20240212
["ID","MTS","AMOUNT","RATE_DAILY","PERIOD"]
[313848496,1707751852234,-500.0,0.00023994,2]
[313848497,1707751852246,-500.0,0.00023994,2]
[313848498,1707751852256,-1537.7,0.00023994,2]
[313848499,1707751852267,-1504.96,0.00023994,2]
[313848500,1707751852277,-500.0,0.00023994,2]
[313848501,1707751852287,-500.0,0.00023994,2]
[313848502,1707751852297,-500.0,0.00023994,2]
[313848503,1707751852306,-500.0,0.00023994,2]
[313848504,1707751852316,-500.0,0.00023994,2]
[313848505,1707751852326,-500.0,0.00023994,2]
[313848506,1707751852335,-500.0,0.00023994,2]
[313848507,1707751852345,-500.0,0.00023994,2]
[313848508,1707751852358,-611.62,0.00023994,2]
[313848509,1707751852368,-500.0,0.00023994,2]
[313848510,1707751852378,-500.0,0.00023994,2]
[313848511,1707751852387,-500.0,0.00023994,2]
[313848512,1707751852397,-500.0,0.00023994,2]
[313848513,1707751852407,-500.0,0.00023994,2]
[313848514,1707751852417,-500.0,0.00023994,2]
[313848515,1707751852427,-500.0,0.00023994,2]
[313848516,1707751852437,-500.0,0.00023994,2]
[313848517,1707751852447,-500.0,0.00023994,2]
[313848518,1707751852457,-500.0,0.00023994,2]
[313848519,1707751852467,-810.48,0.00023994,2]
[313848520,1707751852476,-500.0,0.00023994,2]
[313848521,1707751852486,-500.0,0.00023994,2]
[313848522,1707751852497,-500.0,0.00023994,2]
[313848523,1707751852507,-500.0,0.00023994,2]
[313848524,1707751852516,-1248.0,0.00023994,2]
[313848525,1707751852526,-263.1,0.00023994,2]
[313848526,1707751852535,-1200.18,0.00023994,2]
[313848527,1707751852545,-2136.3,0.00023994,2]
[313848528,1707751852555,-500.0,0.00023994,2]
[313848529,1707751852565,-783.34,0.00023994,2]
[313848530,1707751852575,-1052.55,0.00023994,2]
[313848531,1707751852584,-500.0,0.00023994,2]
[313848532,1707751852594,-500.0,0.00023994,2]
[313848533,1707751852603,-500.0,0.00023994,2]
[313848534,1707751852612,-500.0,0.00023995,2]
[313848535,1707751852622,-500.0,0.00023995,2]
[313848536,1707751852632,-500.0,0.00023995,2]
[313848537,1707751852641,-727.49,0.00023995,2]
[313848538,1707751852650,-500.0,0.00023995,2]
[313848539,1707751852659,-519.5843072,0.00024,2]
[313848540,1707751852669,-165.77928801,0.00024068,2]
[313848541,1707751852678,-500.0,0.00024165,2]
[313848542,1707751852687,-500.0,0.00024165,2]
[313848543,1707751852697,-535.48,0.00024165,2]
[313848544,1707751852706,-500.0,0.00024165,2]
[313848545,1707751852716,-2484.75,0.00024165,2]
[313848546,1707751852725,-500.0,0.00024165,2]
[313848547,1707751852734,-500.0,0.00024165,2]
[313848548,1707751852744,-279.37,0.00024165,2]
[313848549,1707751852754,-500.0,0.00024165,2]
[313848550,1707751852763,-500.0,0.00024165,2]
[313848551,1707751852773,-500.0,0.00024165,2]
[313848552,1707751852782,-500.0,0.00024165,2]
[313848553,1707751852791,-512.81,0.00024165,2]
[313848554,1707751852801,-500.0,0.00024165,2]
[313848555,1707751852810,-500.0,0.00024165,2]
[313848556,1707751852819,-778.36,0.00024165,2]
[313848557,1707751852828,-653.77,0.00024165,2]
[313848558,1707751852837,-500.0,0.00024165,2]
[313848559,1707751852847,-348.45452519,0.00024165,2]
[313848560,1707751852855,-500.0,0.00024165,2]
[313848561,1707751852865,-500.0,0.00024165,2]
[313848562,1707751852874,-500.0,0.00024165,2]
[313848563,1707751852884,-500.0,0.00024165,2]
[313848564,1707751852895,-500.0,0.00024165,2]
[313848565,1707751852905,-573.7,0.00024165,2]
[313848566,1707751852915,-736.61,0.00024165,2]
[313848567,1707751852926,-500.0,0.00024165,2]
[313848568,1707751852937,-731.77,0.00024165,2]
[313848569,1707751852948,-1743.18,0.00024165,2]
[313848570,1707751852959,-898.12,0.00024165,2]
[313848571,1707751852969,-500.0,0.00024165,2]
[313848572,1707751852979,-500.0,0.00024165,2]
[313848573,1707751852989,-500.0,0.00024165,2]
[313848574,1707751853002,-193.61,0.00024165,2]
[313848575,1707751853011,-500.0,0.00024165,2]
[313848576,1707751853021,-500.0,0.00024165,2]
[313848577,1707751853030,-722.48,0.00024165,2]
[313848578,1707751853039,-500.0,0.00024168,2]
[313848579,1707751853051,-450.76661199,0.00024168,2]
[313848580,1707751853060,-904.17,0.00024168,2]
[313848581,1707751853070,-425.04,0.00024169,2]
[313848582,1707751853079,-500.0,0.00024169,2]
[313848583,1707751853089,-362.05,0.00024268,2]
[313848584,1707751853098,-500.0,0.00024268,2]
[313848585,1707751853107,-500.0,0.00024268,2]
[313848586,1707751853116,-500.0,0.00024268,2]
[313848587,1707751853125,-165.20129217,0.00024268,2]
[313848588,1707751853134,-500.0,0.00024268,2]
[313848589,1707751853144,-500.0,0.00024268,2]
[313848590,1707751853153,-348.79389274,0.00024268,2]
[313848591,1707751853163,-500.0,0.00024268,2]
[313848592,1707751853172,-500.0,0.00024268,2]
[313848593,1707751853182,-500.0,0.00024268,2]
[313848594,1707751853192,-552.18136381,0.00024268,2]
[313848595,1707751853203,-500.0,0.00024268,2]
[313848596,1707751853214,-369.51,0.00024268,2]
[313848597,1707751853225,-500.0,0.00024268,2]
[313848598,1707751853235,-528.09,0.00024268,2]
[313848599,1707751853248,-282.40803319,0.00024268,2]
[313848600,1707751853259,-500.0,0.00024268,2]
[313848601,1707751853270,-500.0,0.00024268,2]
[313848602,1707751853280,-465.05713676,0.00024268,2]
[313848603,1707751853291,-719.96,0.00024268,2]
[313848604,1707751853302,-500.0,0.00024268,2]
[313848605,1707751853311,-877.46,0.00024268,2]
[313848606,1707751853321,-500.0,0.00024268,2]
[313848607,1707751853331,-500.0,0.00024268,2]
[313848608,1707751853341,-604.79,0.00024268,2]
[313848609,1707751853351,-500.0,0.00024268,2]
[313848610,1707751853361,-500.0,0.00024268,2]
[313848611,1707751853371,-500.0,0.00024268,2]
[313848612,1707751853387,-500.0,0.00024268,2]
[313848613,1707751853397,-397.08,0.00024268,2]
[313848614,1707751853407,-500.0,0.00024268,2]
[313848615,1707751853418,-361.84,0.00024268,2]
[313848616,1707751853428,-1537.7,0.00024268,2]
[313848617,1707751853438,-1504.96,0.00024268,2]
[313848618,1707751853448,-500.0,0.00024268,2]
[313848619,1707751853457,-236.74331914,0.00024268,2]
[313848620,1707751853467,-369.96,0.00024268,2]
[313848621,1707751853476,-500.0,0.00024268,2]
[313848622,1707751853486,-364.3,0.00024268,2]
[313848623,1707751853497,-500.0,0.00024268,2]
[313848624,1707751853506,-500.0,0.00024268,2]
[313848625,1707751853517,-611.62,0.00024268,2]
[313848626,1707751853526,-500.0,0.00024268,2]
[313848627,1707751853535,-462.98805869,0.00024268,2]
[313848628,1707751853545,-500.0,0.00024268,2]
[313848629,1707751853554,-500.0,0.00024268,2]
[313848630,1707751853563,-500.0,0.00024268,2]
[313848631,1707751853573,-500.0,0.00024268,2]
[313848632,1707751853582,-424.68,0.00024268,2]
[313848633,1707751853591,-500.0,0.00024268,2]
[313848634,1707751853601,-810.48,0.00024268,2]
[313848635,1707751853610,-557.37,0.00024268,2]
[313848636,1707751853619,-500.0,0.00024268,2]
[313848637,1707751853629,-500.0,0.00024268,2]
[313848638,1707751853638,-1248.0,0.00024268,2]
[313848639,1707751853648,-1200.18,0.00024268,2]
[313848640,1707751853657,-2136.3,0.00024268,2]
[313848641,1707751853666,-500.0,0.00024268,2]
[313848642,1707751853675,-783.34,0.00024268,2]
[313848643,1707751853685,-1052.55,0.00024268,2]
[313848644,1707751853695,-500.0,0.00024268,2]
[313848645,1707751853704,-500.0,0.00024268,2]
[313848646,1707751853713,-267.07,0.00024268,2]
[313848647,1707751853723,-500.0,0.00024269,2]
[313848648,1707751853733,-500.0,0.00024269,2]
[313848649,1707751853744,-500.0,0.00024269,2]
[313848650,1707751853752,-727.49,0.00024269,2]
[313848651,1707751853761,-500.0,0.00024269,2]
[313848652,1707751853770,-777.0,0.00024384,2]
[313848653,1707751853780,-3764.67,0.00024384,2]
[313848654,1707751853790,-500.0,0.00024439,2]
[313848655,1707751853799,-500.0,0.00024439,2]
[313848656,1707751853809,-535.48,0.00024439,2]
[313848657,1707751853818,-500.0,0.00024439,2]
[313848658,1707751853827,-2484.75,0.00024439,2]
[313848659,1707751853837,-500.0,0.00024439,2]
[313848660,1707751853847,-500.0,0.00024439,2]
[313848661,1707751853856,-500.0,0.00024439,2]
[313848662,1707751853865,-500.0,0.00024439,2]
[313848663,1707751853875,-500.0,0.00024439,2]
[313848664,1707751853885,-500.0,0.00024439,2]
[313848665,1707751853895,-512.81,0.00024439,2]
[313848666,1707751853905,-500.0,0.00024439,2]
[313848667,1707751853916,-500.0,0.00024439,2]
[313848668,1707751853926,-778.36,0.00024439,2]
[313848669,1707751853936,-653.77,0.00024439,2]
[313848670,1707751853947,-500.0,0.00024439,2]
[313848671,1707751853957,-500.0,0.00024439,2]
[313848672,1707751853967,-500.0,0.00024439,2]
[313848673,1707751853977,-500.0,0.00024439,2]
[313848674,1707751853986,-500.0,0.00024439,2]
[313848675,1707751853998,-573.7,0.00024439,2]
[313848676,1707751854008,-736.61,0.00024439,2]
[313848677,1707751854017,-580.2,0.00024439,2]
[313848678,1707751854027,-731.77,0.00024439,2]
[313848679,1707751854037,-1743.18,0.00024439,2]
[313848680,1707751854046,-898.12,0.00024439,2]
[313848681,1707751854056,-500.0,0.00024439,2]
[313848682,1707751854065,-500.0,0.00024439,2]
[313848683,1707751854076,-500.0,0.00024439,2]
[313848684,1707751854086,-500.0,0.00024439,2]
[313848685,1707751854095,-500.0,0.00024439,2]
[313848686,1707751854105,-722.48,0.00024439,2]
[313848687,1707751854114,-345.06,0.00024442,2]
[313848688,1707751854123,-904.17,0.00024442,2]
[313848689,1707751854133,-500.0,0.00024443,2]
[313848690,1707751854142,-1253.0,0.00024497,2]
[313848691,1707751854354,-500.0,0.00024542,2]
[313848692,1707751854408,-500.0,0.00024542,2]
[313848693,1707751854418,-500.0,0.00024542,2]
[313848694,1707751854427,-500.0,0.00024542,2]
[313848695,1707751854437,-500.0,0.00024542,2]
[313848696,1707751854446,-602.16,0.00024542,2]
[313848697,1707751854456,-500.0,0.00024542,2]
[313848698,1707751854465,-500.0,0.00024542,2]
[313848699,1707751854474,-528.09,0.00024542,2]
[313848700,1707751854483,-500.0,0.00024542,2]
[313848701,1707751854493,-500.0,0.00024542,2]
[313848702,1707751854503,-719.96,0.00024542,2]
[313848703,1707751854512,-500.0,0.00024542,2]
[313848704,1707751854522,-877.46,0.00024542,2]
[313848705,1707751854531,-500.0,0.00024542,2]
[313848706,1707751854542,-500.0,0.00024542,2]
[313848707,1707751854551,-604.79,0.00024542,2]
[313848708,1707751854560,-500.0,0.00024542,2]
[313848709,1707751854570,-500.0,0.00024542,2]
[313848710,1707751854579,-500.0,0.00024542,2]
[313848711,1707751854589,-541.3613658,0.00024542,2]
[313848712,1707751854599,-1537.7,0.00024542,2]
[313848713,1707751854608,-1504.96,0.00024542,2]
[313848714,1707751854618,-500.0,0.00024542,2]
[313848715,1707751854627,-500.0,0.00024542,2]
[313848716,1707751854636,-500.0,0.00024542,2]
[313848717,1707751854646,-500.0,0.00024542,2]
[313848718,1707751854655,-611.62,0.00024542,2]
[313848719,1707751854664,-500.0,0.00024542,2]
[313848720,1707751854674,-500.0,0.00024542,2]
[313848721,1707751854684,-500.0,0.00024542,2]
[313848722,1707751854694,-500.0,0.00024542,2]
[313848723,1707751854704,-500.0,0.00024542,2]
[313848724,1707751854713,-810.48,0.00024542,2]
[313848725,1707751854722,-500.0,0.00024542,2]
[313848726,1707751854733,-500.0,0.00024542,2]
[313848727,1707751854742,-1248.0,0.00024542,2]
[313848728,1707751854752,-1200.18,0.00024542,2]
[313848729,1707751854763,-2136.3,0.00024542,2]
[313848730,1707751854772,-500.0,0.00024542,2]
[313848731,1707751854782,-783.34,0.00024542,2]
[313848732,1707751854792,-1052.55,0.00024542,2]
[313848733,1707751854802,-500.0,0.00024542,2]
[313848734,1707751854813,-500.0,0.00024542,2]
[313848735,1707751854823,-500.0,0.00024543,2]
[313848736,1707751854833,-626.0,0.00024543,2]
[313848737,1707751854843,-500.0,0.00024543,2]
[313848738,1707751854852,-727.49,0.00024543,2]
[313848739,1707751854862,-500.0,0.00024543,2]
[313848740,1707751854872,-155.3,0.00024558,2]
[313848741,1707751854881,-154.12,0.00024578,2]
[313848742,1707751854891,-250.0,0.00024658,2]
[313848743,1707751854901,-500.0,0.00024713,2]
[313848744,1707751854911,-500.0,0.00024713,2]
[313848745,1707751854920,-535.48,0.00024713,2]
[313848746,1707751854930,-500.0,0.00024713,2]
[313848747,1707751854939,-2484.75,0.00024713,2]
[313848748,1707751854949,-500.0,0.00024713,2]
[313848749,1707751854958,-500.0,0.00024713,2]
[313848750,1707751854968,-500.0,0.00024713,2]
[313848751,1707751854978,-500.0,0.00024713,2]
[313848752,1707751854988,-500.0,0.00024713,2]
[313848753,1707751854999,-500.0,0.00024713,2]
[313848754,1707751855009,-512.81,0.00024713,2]
[313848755,1707751855019,-500.0,0.00024713,2]
[313848756,1707751855030,-500.0,0.00024713,2]
[313848757,1707751855040,-778.36,0.00024713,2]
[313848758,1707751855050,-653.77,0.00024713,2]
[313848759,1707751855060,-500.0,0.00024713,2]
[313848760,1707751855069,-500.0,0.00024713,2]
[313848761,1707751855079,-500.0,0.00024713,2]
[313848762,1707751855089,-500.0,0.00024713,2]
[313848763,1707751855098,-500.0,0.00024713,2]
[313848764,1707751855108,-573.7,0.00024713,2]
[313848765,1707751855117,-736.61,0.00024713,2]
[313848766,1707751855128,-731.77,0.00024713,2]
[313848767,1707751855140,-1743.18,0.00024713,2]
[313848768,1707751855150,-898.12,0.00024713,2]
[313848769,1707751855160,-639.15,0.00024713,2]
[313848770,1707751855169,-500.0,0.00024713,2]
[313848771,1707751855179,-500.0,0.00024713,2]
[313848772,1707751855189,-500.0,0.00024713,2]
[313848773,1707751855199,-500.0,0.00024713,2]
[313848774,1707751855209,-722.48,0.00024713,2]
[313848775,1707751855218,-904.17,0.00024716,2]
[313848776,1707751855230,-372.9,0.00024717,2]
[313848777,1707751855239,-6052.35892981,0.0002479,2]
[313848778,1707751855251,-6052.35892975,0.0002479,2]
[313848779,1707751855263,-239.365,0.00024799,2]
[313848780,1707751855272,-239.365,0.00024799,2]
[313848781,1707751855281,-286.6,0.00024816,2]
[313848782,1707751855291,-500.0,0.00024816,2]
[313848783,1707751855301,-593.09,0.00024816,2]
[313848784,1707751855310,-578.79,0.00024816,2]
[313848785,1707751855320,-386.56963641,0.00024816,2]
[313848786,1707751855330,-500.0,0.00024816,2]
[313848787,1707751855340,-528.09,0.00024816,2]
[313848788,1707751855350,-500.0,0.00024816,2]
[313848789,1707751855359,-500.0,0.00024816,2]
[313848790,1707751855369,-719.96,0.00024816,2]
[313848791,1707751855381,-877.46,0.00024816,2]
[313848792,1707751855390,-475.8,0.00024816,2]
[313848793,1707751855401,-500.0,0.00024816,2]
[313848794,1707751855411,-604.79,0.00024816,2]
[313848795,1707751855422,-500.0,0.00024816,2]
[313848796,1707751855431,-384.33,0.00024816,2]
[313848797,1707751855441,-579.86,0.00024816,2]
[313848798,1707751855452,-1537.7,0.00024816,2]
[313848799,1707751855462,-1504.96,0.00024816,2]
[313848800,1707751855471,-500.0,0.00024816,2]
[313848801,1707751855481,-532.12,0.00024816,2]
[313848802,1707751855491,-500.0,0.00024816,2]
[313848803,1707751855502,-500.0,0.00024816,2]
[313848804,1707751855511,-611.62,0.00024816,2]
[313848805,1707751855522,-500.0,0.00024816,2]
[313848806,1707751855531,-500.0,0.00024816,2]
[313848807,1707751855542,-500.0,0.00024816,2]
[313848808,1707751855551,-500.0,0.00024816,2]
[313848809,1707751855560,-500.0,0.00024816,2]
[313848810,1707751855570,-810.48,0.00024816,2]
[313848811,1707751855580,-500.0,0.00024816,2]
[313848812,1707751855590,-500.0,0.00024816,2]
[313848813,1707751855600,-1248.0,0.00024816,2]
[313848814,1707751855609,-1200.18,0.00024816,2]
[313848815,1707751855618,-2136.3,0.00024816,2]
[313848816,1707751855629,-500.0,0.00024816,2]
[313848817,1707751855639,-783.34,0.00024816,2]
[313848818,1707751855649,-1052.55,0.00024816,2]
[313848819,1707751855658,-500.0,0.00024816,2]
[313848820,1707751855668,-500.0,0.00024816,2]
[313848821,1707751855678,-500.0,0.00024817,2]
[313848822,1707751855687,-500.0,0.00024817,2]
[313848823,1707751855697,-727.49,0.00024817,2]
[313848824,1707751855707,-500.0,0.00024817,2]
[313848825,1707751855717,-1138.0,0.00024839,2]
[313848826,1707751855726,-150.0,0.00024839,2]
[313848827,1707751855736,-859.0,0.00024839,2]
[313848828,1707751855746,-321.0,0.00024839,2]
[313848829,1707751855756,-343.0,0.00024839,2]
[313848830,1707751855766,-4206.0,0.0002484,2]
[313848831,1707751855775,-19827.0,0.0002484,2]
[313848832,1707751855785,-944.152,0.0002484,2]
[313848833,1707751855794,-2924.0,0.0002484,2]
[313848834,1707751855803,-837.0,0.0002484,2]
[313848835,1707751855813,-952.0,0.0002484,2]
[313848836,1707751855822,-1036.0,0.0002484,2]
[313848837,1707751855832,-150.0,0.0002484,2]
[313848838,1707751855841,-707.0,0.0002484,2]
[313848839,1707751855850,-216.0,0.0002484,2]
[313848840,1707751855859,-1231.0,0.0002484,2]
[313848841,1707751855869,-500.0,0.00024987,2]
[313848842,1707751855878,-500.0,0.00024987,2]
[313848843,1707751855888,-535.48,0.00024987,2]
[313848844,1707751855897,-500.0,0.00024987,2]
[313848845,1707751855907,-2484.75,0.00024987,2]
[313848846,1707751855916,-500.0,0.00024987,2]
[313848847,1707751855926,-602.9,0.00024987,2]
[313848848,1707751855936,-500.0,0.00024987,2]
[313848849,1707751855946,-500.0,0.00024987,2]
[313848850,1707751855956,-500.0,0.00024987,2]
[313848851,1707751855966,-500.0,0.00024987,2]
[313848852,1707751855975,-512.81,0.00024987,2]
[313848853,1707751855985,-500.0,0.00024987,2]
[313848854,1707751855997,-500.0,0.00024987,2]
[313848855,1707751856006,-778.36,0.00024987,2]
[313848856,1707751856015,-653.77,0.00024987,2]
[313848857,1707751856025,-500.0,0.00024987,2]
[313848858,1707751856034,-500.0,0.00024987,2]
[313848859,1707751856045,-465.68,0.00024987,2]
[313848860,1707751856054,-500.0,0.00024987,2]
[313848861,1707751856064,-573.7,0.00024987,2]
[313848862,1707751856075,-736.61,0.00024987,2]
[313848863,1707751856084,-731.77,0.00024987,2]
[313848864,1707751856093,-1743.18,0.00024987,2]
[313848865,1707751856103,-898.12,0.00024987,2]
[313848866,1707751856113,-500.0,0.00024987,2]
[313848867,1707751856124,-500.0,0.00024987,2]
[313848868,1707751856134,-500.0,0.00024987,2]
[313848869,1707751856143,-500.0,0.00024987,2]
[313848870,1707751856153,-904.17,0.0002499,2]
[313848871,1707751856163,-1256.25370781,0.00025,2]
[313848872,1707751856173,-370.34765471,0.00025,2]
[313848873,1707751856182,-1592.09246113,0.00025,2]
[313848874,1707751856193,-946.31124793,0.00025,2]
[313848875,1707751856202,-750.0,0.00025,3]
[313848876,1707751856212,-9000.0,0.00025,2]
[313848877,1707751856221,-150.0,0.00025019,2]
[313848878,1707751856230,-150.0,0.00025019,2]
[313848879,1707751856240,-150.0,0.00025019,2]
[313848880,1707751856251,-150.0,0.00025019,2]
[313848881,1707751856260,-199.0,0.00025019,2]
[313848882,1707751856269,-200.073,0.00025019,2]
[313848883,1707751856285,-500.0,0.0002509,2]
[313848884,1707751856294,-500.0,0.0002509,2]
[313848885,1707751856303,-528.09,0.0002509,2]
[313848886,1707751856313,-500.0,0.0002509,2]
[313848887,1707751856322,-500.0,0.0002509,2]
[313848888,1707751856332,-719.96,0.0002509,2]
[313848889,1707751856341,-877.46,0.0002509,2]
[313848890,1707751856351,-500.0,0.0002509,2]
[313848891,1707751856361,-604.79,0.0002509,2]
[313848892,1707751856371,-500.0,0.0002509,2]
[313848893,1707751856384,-1537.7,0.0002509,2]
[313848894,1707751856394,-1504.96,0.0002509,2]
[313848895,1707751856403,-500.0,0.0002509,2]
[313848896,1707751856413,-500.0,0.0002509,2]
[313848897,1707751856423,-500.0,0.0002509,2]
[313848898,1707751856432,-611.62,0.0002509,2]
[313848899,1707751856442,-500.0,0.0002509,2]
[313848900,1707751856452,-500.0,0.0002509,2]
[313848901,1707751856462,-500.0,0.0002509,2]
[313848902,1707751856473,-500.0,0.0002509,2]
[313848903,1707751856482,-500.0,0.0002509,2]
[313848904,1707751856491,-573.38318464,0.0002509,2]
[313848905,1707751856844,-267.21092104,0.00023068,2]
[313848906,1707751856854,-500.0,0.00024165,2]
[313848907,1707751856864,-595.0,0.00024439,2]
[313848908,1707751856873,-722.48,0.00024987,2]
[313848909,1707751856883,-237.09681536,0.0002509,2]
[313848910,1707751856892,-500.0,0.0002509,2]
[313848911,1707751856902,-500.0,0.0002509,2]
[313848912,1707751856911,-1248.0,0.0002509,2]
[313848913,1707751856921,-338.8122636,0.0002509,2]
[313848914,1707751857650,-861.3677364,0.0002509,2]
[313848915,1707751857660,-126.67137724,0.0002509,2]
[313848916,1707751857671,-600.0,0.0002509,2]
[313848917,1707751857686,-666.181516,0.0002509,2]
[313848918,1707751857697,-743.44710676,0.0002509,2]
[313848919,1707751857707,-500.0,0.0002509,2]
[313848920,1707751857716,-783.34,0.0002509,2]
[313848921,1707751857725,-1052.55,0.0002509,2]
[313848922,1707751857735,-500.0,0.0002509,2]
[313848923,1707751857746,-500.0,0.0002509,2]
[313848924,1707751857754,-323.71,0.00025091,2]
[313848925,1707751857764,-500.0,0.00025091,2]
[313848926,1707751857773,-169.15858727,0.00025091,2]
[313848927,1707751858253,-500.0,0.00023069,2]
[313848928,1707751858263,-500.0,0.00023172,2]
[313848929,1707751858273,-500.0,0.00023343,2]
[313848930,1707751858283,-298.45,0.00023617,2]
[313848931,1707751858292,-1723.578,0.00024497,2]
[313848932,1707751858302,-149.83895,0.00024507,2]
[313848933,1707751860097,-251.19131867,0.00024507,2]
[313848934,1707751860109,-27.96973133,0.00024507,2]
[313848935,1707751860119,-558.33141273,0.00025091,2]
[313848936,1707751860129,-500.0,0.00025091,2]
[313848937,1707751860139,-198.68272766,0.00025105,2]
[313848938,1707751860149,-328.0,0.00025183,2]
[313848939,1707751860159,-840.0,0.00025207,2]
[313848940,1707751860168,-150.39,0.00025246,2]
[313848941,1707751860180,-324.37,0.00025261,2]
[313848942,1707751860189,-500.0,0.00025261,2]
[313848943,1707751860198,-535.48,0.00025261,2]
[313848944,1707751860208,-500.0,0.00025261,2]
[313848945,1707751860218,-2484.75,0.00025261,2]
[313848946,1707751860227,-326.94,0.00025261,2]
[313848947,1707751860237,-500.0,0.00025261,2]
[313848948,1707751860248,-419.3520874,0.00025261,2]
[313848949,1707751860258,-500.75,0.00025261,2]
[313848950,1707751860268,-500.0,0.00025261,2]
[313848951,1707751860279,-512.81,0.00025261,2]
[313848952,1707751860288,-633.9154315,0.00025261,2]
[313848953,1707751860299,-500.0,0.00025261,2]
[313848954,1707751860309,-778.36,0.00025261,2]
[313848955,1707751860318,-653.77,0.00025261,2]
[313848956,1707751860328,-500.0,0.00025261,2]
[313848957,1707751860338,-500.0,0.00025261,2]
[313848958,1707751860347,-500.0,0.00025261,2]
[313848959,1707751860358,-573.7,0.00025261,2]
[313848960,1707751860480,-736.61,0.00025261,2]
[313848961,1707751860530,-731.77,0.00025261,2]
[313848962,1707751860540,-1743.18,0.00025261,2]
[313848963,1707751860550,-898.12,0.00025261,2]
[313848964,1707751860561,-500.0,0.00025261,2]
[313848965,1707751860571,-500.0,0.00025261,2]
[313848966,1707751860580,-500.0,0.00025261,2]
[313848967,1707751860590,-500.0,0.00025261,2]
[313848968,1707751860601,-722.48,0.00025261,2]
[313848969,1707751860610,-904.17,0.00025264,2]
[313848970,1707751860619,-500.0,0.00025364,2]
[313848971,1707751860629,-578.45,0.00025364,2]
[313848972,1707751860638,-500.0,0.00025364,2]
[313848973,1707751860648,-613.83,0.00025364,2]
[313848974,1707751860658,-719.96,0.00025364,2]
[313848975,1707751860667,-500.0,0.00025364,2]
[313848976,1707751860677,-63.02065372,0.00025364,2]
[313848981,1707751913349,500.0,0.00022899,2]
[313848990,1707752053080,150.39,0.00021869,2]
[313848991,1707752182686,-4867.89255788,0.00023061,2]
[313848992,1707752182710,-4650.94335151,0.00023062,2]
[313848993,1707752182733,-150.0,0.00023066,2]
[313848994,1707752182757,-718.53525099,0.00023067,2]
[313848995,1707752182783,-39551.37632894,0.00023067,2]
[313848996,1707752195061,4867.89255788,0.00023065,2]
[313848997,1707752198775,613.53003359,0.00023067,2]
[313848998,1707752213075,300.87991921,0.00023067,2]
[313848999,1707752267015,161.77972462,0.00022968,2]
[313849002,1707752468177,861.01914996,0.00022968,2]
[313849003,1707752490255,884.30799886,0.00022968,2]
[313849004,1707752642321,161.77972462,0.00022967,2]
[313849006,1707752717810,-4867.89255788,0.00023066,2]
[313849007,1707752717833,-300.0,0.00023066,2]
[313849008,1707752717856,-2608.04294306,0.00023067,2]
[313849009,1707752717879,-4621.70634194,0.00023067,2]
[313849010,1707752717902,-1861.33867425,0.00023067,2]